[Event "*** Titled Tuesday Blitz"]
[Site "Chess.com"]
[Date "2018.01.02"]
[Round "1"]
[White "moro182"]
[Black "catalin009"]
[Result "0-1"]
[WhiteElo "2610"]
[BlackElo "2360"]
[TimeControl "180+2"]
[EndTime "13:09:32 PST"]
[Termination "catalin009 won by resignation"]

1. d4 {[%clk 0:03:01.9]} 1... Nf6 {[%clk 0:02:59.8]} 2. Bf4 {[%clk 0:03:02.1]}
2... e6 {[%clk 0:02:59.2]} 3. e3 {[%clk 0:03:03]} 3... b6 {[%clk 0:02:59.3]} 4.
Nf3 {[%clk 0:03:03.3]} 4... Bb7 {[%clk 0:03:00.7]} 5. Nbd2 {[%clk 0:03:04.6]}
5... c5 {[%clk 0:03:01.9]} 6. c3 {[%clk 0:03:06]} 6... Be7 {[%clk 0:02:54.7]} 7.
h3 {[%clk 0:03:02.1]} 7... O-O {[%clk 0:02:37.2]} 8. Bd3 {[%clk 0:03:00.6]} 8...
cxd4 {[%clk 0:02:32.1]} 9. exd4 {[%clk 0:02:59.9]} 9... d6 {[%clk 0:02:32.3]}
10. O-O {[%clk 0:02:58.7]} 10... Nbd7 {[%clk 0:02:31.7]} 11. Qe2 {[%clk
0:02:59.1]} 11... h6 {[%clk 0:02:31.9]} 12. Rfe1 {[%clk 0:03:00.1]} 12... Re8
{[%clk 0:02:33.2]} 13. Rad1 {[%clk 0:02:59.5]} 13... a6 {[%clk 0:02:34.1]} 14.
Nc4 {[%clk 0:03:00.1]} 14... Qc7 {[%clk 0:02:33.7]} 15. Ne3 {[%clk 0:02:57.7]}
15... b5 {[%clk 0:02:31.6]} 16. Bb1 {[%clk 0:02:58.1]} 16... Be4 {[%clk
0:02:21]} 17. Bxe4 {[%clk 0:02:47.9]} 17... Nxe4 {[%clk 0:02:20.5]} 18. d5
{[%clk 0:02:39.4]} 18... e5 {[%clk 0:02:17.2]} 19. Nf5 {[%clk 0:02:40]} 19...
Ndf6 {[%clk 0:02:11.5]} 20. Bc1 {[%clk 0:02:33.2]} 20... Bf8 {[%clk 0:01:57.9]}
21. Qd3 {[%clk 0:02:02.6]} 21... Qd7 {[%clk 0:01:33.4]} 22. Ne3 {[%clk
0:01:39.3]} 22... Rac8 {[%clk 0:01:27]} 23. a3 {[%clk 0:00:38.7]} 23... g6
{[%clk 0:01:00.8]} 24. Nc2 {[%clk 0:00:38.1]} 24... Nc5 {[%clk 0:01:00.6]} 25.
Qe2 {[%clk 0:00:38.8]} 25... a5 {[%clk 0:00:51.9]} 26. Be3 {[%clk 0:00:39.2]}
26... Nce4 {[%clk 0:00:48.8]} 27. Bb6 {[%clk 0:00:39.4]} 27... Ra8 {[%clk
0:00:40.5]} 28. Qd3 {[%clk 0:00:40.4]} 28... Reb8 {[%clk 0:00:33.4]} 29. Be3
{[%clk 0:00:41.1]} 29... Rc8 {[%clk 0:00:29.3]} 30. Nd2 {[%clk 0:00:39]} 30...
Nxd2 {[%clk 0:00:27.2]} 31. Qxd2 {[%clk 0:00:40.9]} 31... Bg7 {[%clk 0:00:28.7]}
32. Bxh6 {[%clk 0:00:41.1]} 32... Qf5 {[%clk 0:00:21.4]} 33. Bxg7 {[%clk
0:00:41.2]} 33... Kxg7 {[%clk 0:00:23.3]} 34. Qe2 {[%clk 0:00:40.7]} 34... Nh5
{[%clk 0:00:23.3]} 35. Ne3 {[%clk 0:00:41.2]} 35... Qg5 {[%clk 0:00:22.9]} 36.
Qxb5 {[%clk 0:00:41.8]} 36... Nf4 {[%clk 0:00:23.8]} 37. Kh2 {[%clk 0:00:41.2]}
37... Rab8 {[%clk 0:00:24.9]} 38. Qd7 {[%clk 0:00:41.7]} 38... Rh8 {[%clk
0:00:24.2]} 39. Qg4 {[%clk 0:00:40.7]} 39... Qxg4 {[%clk 0:00:24.3]} 40. Nxg4
{[%clk 0:00:42.6]} 40... Rxb2 {[%clk 0:00:26]} 41. c4 {[%clk 0:00:42.8]} 41...
f5 {[%clk 0:00:26.9]} 42. Ne3 {[%clk 0:00:40.9]} 42... Rxf2 {[%clk 0:00:28.1]}
43. Kg1 {[%clk 0:00:42.5]} 43... Ra2 {[%clk 0:00:27.2]} 44. Ra1 {[%clk
0:00:43.2]} 44... Rxa1 {[%clk 0:00:26.9]} 45. Rxa1 {[%clk 0:00:45.1]} 45... Rb8
{[%clk 0:00:28.4]} 46. Rc1 {[%clk 0:00:46.2]} 46... Nd3 {[%clk 0:00:28.9]} 47.
Rc3 {[%clk 0:00:46.3]} 47... Nc5 {[%clk 0:00:30.4]} 48. h4 {[%clk 0:00:38.6]}
48... e4 {[%clk 0:00:30.8]} 49. Kh2 {[%clk 0:00:37.3]} 49... Kf6 {[%clk
0:00:31.5]} 50. g3 {[%clk 0:00:38.1]} 50... Ke5 {[%clk 0:00:32.1]} 51. Ng2
{[%clk 0:00:38.5]} 51... Rb2 {[%clk 0:00:30.8]} 52. Kh3 {[%clk 0:00:36.8]} 52...
Nd3 {[%clk 0:00:32]} 53. h5 {[%clk 0:00:36.4]} 53... g5 {[%clk 0:00:30]} 54. Ne3
{[%clk 0:00:34.2]} 54... Nf2+ {[%clk 0:00:30.6]} 55. Kg2 {[%clk 0:00:34.8]}
55... Nd1+ {[%clk 0:00:30.5]} 56. Kg1 {[%clk 0:00:36.2]} 56... Nxc3 {[%clk
0:00:31.5]} 0-1

[Event "*** Titled Tuesday Blitz"]
[Site "Chess.com"]
[Date "2018.01.02"]
[Round "1"]
[White "aa175"]
[Black "asms9699"]
[Result "0-1"]
[WhiteElo "1902"]
[BlackElo "2427"]
[TimeControl "180+2"]
[EndTime "13:09:43 PST"]
[Termination "asms9699 won by checkmate"]

1. e4 {[%clk 0:03:01.9]} 1... c5 {[%clk 0:03:00.1]} 2. Nf3 {[%clk 0:03:02]} 2...
d6 {[%clk 0:03:01.3]} 3. d4 {[%clk 0:02:58]} 3... cxd4 {[%clk 0:03:03.2]} 4.
Nxd4 {[%clk 0:02:59.6]} 4... Nf6 {[%clk 0:03:04.3]} 5. Nc3 {[%clk 0:02:57.2]}
5... Nc6 {[%clk 0:03:05.5]} 6. Bg5 {[%clk 0:02:53.4]} 6... e6 {[%clk 0:03:06.1]}
7. Qd2 {[%clk 0:02:50.7]} 7... a6 {[%clk 0:03:06.3]} 8. O-O-O {[%clk 0:02:51.8]}
8... Bd7 {[%clk 0:03:06.9]} 9. f4 {[%clk 0:02:49.2]} 9... b5 {[%clk 0:03:07.3]}
10. Bxf6 {[%clk 0:02:50.3]} 10... gxf6 {[%clk 0:03:07.6]} 11. Kb1 {[%clk
0:02:49]} 11... Qb6 {[%clk 0:03:08]} 12. Nxc6 {[%clk 0:02:49.9]} 12... Bxc6
{[%clk 0:03:08.7]} 13. Qe1 {[%clk 0:02:44.6]} 13... Be7 {[%clk 0:03:06.4]} 14.
Bd3 {[%clk 0:02:41.4]} 14... b4 {[%clk 0:03:03.1]} 15. Ne2 {[%clk 0:02:38.2]}
15... a5 {[%clk 0:03:04.3]} 16. f5 {[%clk 0:02:36.6]} 16... e5 {[%clk
0:03:03.8]} 17. Ng3 {[%clk 0:02:31.5]} 17... h5 {[%clk 0:03:03.8]} 18. Qe2
{[%clk 0:02:28.9]} 18... h4 {[%clk 0:03:03.1]} 19. Nf1 {[%clk 0:02:25.7]} 19...
a4 {[%clk 0:02:57.4]} 20. Ne3 {[%clk 0:02:09.4]} 20... b3 {[%clk 0:02:50.9]} 21.
cxb3 {[%clk 0:01:47]} 21... axb3 {[%clk 0:02:52.8]} 22. a3 {[%clk 0:01:48]}
22... h3 {[%clk 0:02:41]} 23. g4 {[%clk 0:01:34.1]} 23... Ra4 {[%clk 0:02:27]}
24. Rc1 {[%clk 0:01:16.2]} 24... Bxe4 {[%clk 0:01:53.7]} 25. Ka1 {[%clk
0:00:39.4]} 25... Bxd3 {[%clk 0:01:47.2]} 26. Qxd3 {[%clk 0:00:35.1]} 26...
Rxa3+ {[%clk 0:01:48]} 27. bxa3 {[%clk 0:00:35.1]} 27... b2+ {[%clk 0:01:49.9]}
28. Ka2 {[%clk 0:00:36.3]} 28... bxc1=Q {[%clk 0:01:50.1]} 29. Rxc1 {[%clk
0:00:38.2]} 29... O-O {[%clk 0:01:48.1]} 30. Nd5 {[%clk 0:00:36.6]} 30... Qb7
{[%clk 0:01:39.8]} 31. Rc7 {[%clk 0:00:27.5]} 31... Qa8 {[%clk 0:01:28.4]} 32.
Nxe7+ {[%clk 0:00:21.4]} 32... Kg7 {[%clk 0:01:28.8]} 33. g5 {[%clk 0:00:21.6]}
33... Qg2+ {[%clk 0:01:15.9]} 34. Rc2 {[%clk 0:00:16.6]} 34... Qxg5 {[%clk
0:01:16.2]} 35. Qxd6 {[%clk 0:00:17.7]} 35... Ra8 {[%clk 0:01:09.5]} 36. Nd5
{[%clk 0:00:16.3]} 36... Ra4 {[%clk 0:01:05.7]} 37. Qc6 {[%clk 0:00:14.2]} 37...
Rg4 {[%clk 0:01:02.7]} 38. Qc3 {[%clk 0:00:14.8]} 38... Qxf5 {[%clk 0:01:01.1]}
39. Ne3 {[%clk 0:00:14.6]} 39... Qe6+ {[%clk 0:01:00.1]} 40. Kb2 {[%clk
0:00:15.7]} 40... Rd4 {[%clk 0:00:58.2]} 41. Rf2 {[%clk 0:00:15.3]} 41... Qb6+
{[%clk 0:00:57.2]} 42. Ka2 {[%clk 0:00:15.8]} 42... Qe6+ {[%clk 0:00:53.9]} 43.
Kb2 {[%clk 0:00:16.2]} 43... Qb6+ {[%clk 0:00:54.6]} 44. Ka2 {[%clk 0:00:17]}
44... Qe6+ {[%clk 0:00:51.4]} 45. Kb2 {[%clk 0:00:17.9]} 45... Qb6+ {[%clk
0:00:51.5]} 46. Kc2 {[%clk 0:00:18.8]} 46... Kg6 {[%clk 0:00:29.6]} 47. Nf5
{[%clk 0:00:15.4]} 47... Rg4 {[%clk 0:00:29.1]} 48. Nh4+ {[%clk 0:00:11.9]}
48... Kh5 {[%clk 0:00:21.8]} 49. Qe1 {[%clk 0:00:09.3]} 49... Qc5+ {[%clk
0:00:21]} 50. Kb1 {[%clk 0:00:09.1]} 50... Qb5+ {[%clk 0:00:21.9]} 51. Rb2
{[%clk 0:00:09.3]} 51... Qd3+ {[%clk 0:00:23.3]} 52. Ka2 {[%clk 0:00:10.2]}
52... Rxh4 {[%clk 0:00:24.2]} 53. Qg1 {[%clk 0:00:08]} 53... Qc4+ {[%clk
0:00:24.5]} 54. Kb1 {[%clk 0:00:08.4]} 54... Rg4 {[%clk 0:00:25]} 55. Qd1 {[%clk
0:00:09]} 55... Kg5 {[%clk 0:00:24.1]} 56. Qd2+ {[%clk 0:00:09.9]} 56... Kg6
{[%clk 0:00:24.6]} 57. Qd8 {[%clk 0:00:08.3]} 57... Rg1+ {[%clk 0:00:24.4]} 58.
Qd1 {[%clk 0:00:09]} 58... Rxd1# {[%clk 0:00:24.9]} 0-1

[Event "*** Titled Tuesday Blitz"]
[Site "Chess.com"]
[Date "2018.01.02"]
[Round "1"]
[White "plouarzel"]
[Black "GM_dmitrij"]
[Result "0-1"]
[WhiteElo "2342"]
[BlackElo "2627"]
[TimeControl "180+2"]
[EndTime "13:09:50 PST"]
[Termination "GM_dmitrij won by resignation"]

1. e4 {[%clk 0:03:01.9]} 1... e5 {[%clk 0:02:59.4]} 2. f4 {[%clk 0:03:02.4]}
2... exf4 {[%clk 0:03:00]} 3. Nf3 {[%clk 0:03:03.3]} 3... Nf6 {[%clk 0:03:01.6]}
4. Nc3 {[%clk 0:03:03.7]} 4... d5 {[%clk 0:03:02.2]} 5. exd5 {[%clk 0:03:04.5]}
5... Nxd5 {[%clk 0:03:04.1]} 6. Bc4 {[%clk 0:03:05.8]} 6... Be6 {[%clk
0:02:57.5]} 7. Nxd5 {[%clk 0:03:00.6]} 7... Bxd5 {[%clk 0:02:59.4]} 8. Qe2+
{[%clk 0:03:01.7]} 8... Be7 {[%clk 0:02:58.6]} 9. d4 {[%clk 0:02:58.8]} 9... Nc6
{[%clk 0:02:58.1]} 10. Bxf4 {[%clk 0:02:46.5]} 10... O-O {[%clk 0:02:36.5]} 11.
Bxd5 {[%clk 0:02:19.4]} 11... Qxd5 {[%clk 0:02:36.6]} 12. c3 {[%clk 0:02:20.7]}
12... Rfe8 {[%clk 0:02:30.4]} 13. O-O {[%clk 0:02:17.7]} 13... Bd6 {[%clk
0:02:27.5]} 14. Qd2 {[%clk 0:02:16.5]} 14... f6 {[%clk 0:02:05.9]} 15. Rae1
{[%clk 0:02:10.4]} 15... Ne7 {[%clk 0:02:07]} 16. Bxd6 {[%clk 0:02:01.3]} 16...
cxd6 {[%clk 0:02:02.5]} 17. a3 {[%clk 0:01:34.5]} 17... b5 {[%clk 0:01:59.2]}
18. Qd3 {[%clk 0:01:28.3]} 18... Ng6 {[%clk 0:01:51.1]} 19. g3 {[%clk 0:00:59]}
19... Qc4 {[%clk 0:01:50.5]} 20. Qf5 {[%clk 0:00:47.8]} 20... Qc6 {[%clk
0:01:41.3]} 21. h4 {[%clk 0:00:41.4]} 21... d5 {[%clk 0:01:27.8]} 22. h5 {[%clk
0:00:38.1]} 22... Ne7 {[%clk 0:01:29.1]} 23. Qg4 {[%clk 0:00:30.2]} 23... Rad8
{[%clk 0:01:12.4]} 24. h6 {[%clk 0:00:20.1]} 24... g6 {[%clk 0:01:11.4]} 25. Qh3
{[%clk 0:00:18.9]} 25... Qd7 {[%clk 0:01:07.7]} 26. Qxd7 {[%clk 0:00:16.6]}
26... Rxd7 {[%clk 0:01:08.4]} 27. Re6 {[%clk 0:00:18.2]} 27... Rf8 {[%clk
0:00:55.1]} 28. Rfe1 {[%clk 0:00:17.9]} 28... Nf5 {[%clk 0:00:56.4]} 29. Kf2
{[%clk 0:00:18.4]} 29... Nxh6 {[%clk 0:00:57.1]} 30. Ra6 {[%clk 0:00:13.5]}
30... Nf5 {[%clk 0:00:29]} 31. Ree6 {[%clk 0:00:12.8]} 31... Kg7 {[%clk
0:00:30.2]} 32. Ra5 {[%clk 0:00:11.5]} 32... Rb8 {[%clk 0:00:30]} 33. g4 {[%clk
0:00:08.7]} 33... Nd6 {[%clk 0:00:30.7]} 34. Ra6 {[%clk 0:00:09.2]} 34... Ne4+
{[%clk 0:00:31.9]} 35. Kg2 {[%clk 0:00:09.3]} 35... Rbb7 {[%clk 0:00:30.2]} 36.
Rac6 {[%clk 0:00:09.4]} 36... Re7 {[%clk 0:00:31.1]} 37. Rxe7+ {[%clk
0:00:09.1]} 37... Rxe7 {[%clk 0:00:32.1]} 38. Ra6 {[%clk 0:00:09.7]} 38... Rd7
{[%clk 0:00:27.9]} 39. Ne1 {[%clk 0:00:07.9]} 39... Kh6 {[%clk 0:00:22.7]} 40.
Nd3 {[%clk 0:00:08.3]} 40... Kg5 {[%clk 0:00:23.9]} 41. Kf3 {[%clk 0:00:06.4]}
41... h5 {[%clk 0:00:23.9]} 42. gxh5 {[%clk 0:00:07.1]} 42... Kxh5 {[%clk
0:00:25.8]} 43. Nc5 {[%clk 0:00:07.1]} 43... Re7 {[%clk 0:00:24.1]} 44. Nxe4
{[%clk 0:00:07.9]} 44... dxe4+ {[%clk 0:00:25.5]} 45. Ke3 {[%clk 0:00:08.8]}
45... f5 {[%clk 0:00:26.9]} 46. Rf6 {[%clk 0:00:09.2]} 46... Kg5 {[%clk
0:00:26.6]} 47. Rf8 {[%clk 0:00:09.8]} 47... Kg4 {[%clk 0:00:28]} 48. d5 {[%clk
0:00:10.7]} 48... g5 {[%clk 0:00:28.3]} 49. d6 {[%clk 0:00:09.3]} 49... f4+
{[%clk 0:00:27.1]} 50. Kd4 {[%clk 0:00:08.6]} 50... Rd7 {[%clk 0:00:28.7]} 51.
Kd5 {[%clk 0:00:08.8]} 51... e3 {[%clk 0:00:30]} 52. Kc6 {[%clk 0:00:09.5]}
52... Rxd6+ {[%clk 0:00:27.2]} 53. Kxd6 {[%clk 0:00:10.7]} 53... f3 {[%clk
0:00:29.1]} 54. Kc5 {[%clk 0:00:06.7]} 54... e2 {[%clk 0:00:29.1]} 55. Re8
{[%clk 0:00:07.2]} 55... f2 {[%clk 0:00:30.4]} 56. Rxe2 {[%clk 0:00:08.3]} 56...
f1=Q {[%clk 0:00:31.7]} 57. Re4+ {[%clk 0:00:09.6]} 57... Kf5 {[%clk 0:00:32]}
0-1

[Event "*** Titled Tuesday Blitz"]
[Site "Chess.com"]
[Date "2018.01.02"]
[Round "1"]
[White "juniortay"]
[Black "Marcus_Harvey"]
[Result "0-1"]
[WhiteElo "2298"]
[BlackElo "2574"]
[TimeControl "180+2"]
[EndTime "13:09:50 PST"]
[Termination "Marcus_Harvey won by resignation"]

1. e4 {[%clk 0:03:01.9]} 1... e6 {[%clk 0:03:01.2]} 2. Nf3 {[%clk 0:03:01.6]}
2... d5 {[%clk 0:03:02.3]} 3. Nc3 {[%clk 0:03:03.2]} 3... Nf6 {[%clk 0:03:03]}
4. e5 {[%clk 0:03:04.6]} 4... Nfd7 {[%clk 0:03:04.4]} 5. d4 {[%clk 0:03:06.4]}
5... c5 {[%clk 0:03:05.6]} 6. Bg5 {[%clk 0:03:08]} 6... Qb6 {[%clk 0:01:57.3]}
7. dxc5 {[%clk 0:03:08.3]} 7... Nxc5 {[%clk 0:01:54.9]} 8. Bb5+ {[%clk
0:03:06.3]} 8... Bd7 {[%clk 0:01:55.2]} 9. Bxd7+ {[%clk 0:03:07]} 9... Nbxd7
{[%clk 0:01:56.6]} 10. O-O {[%clk 0:03:08.7]} 10... Qxb2 {[%clk 0:01:52.1]} 11.
Qd2 {[%clk 0:03:09]} 11... Ne4 {[%clk 0:01:41.1]} 12. Nxe4 {[%clk 0:03:01]}
12... dxe4 {[%clk 0:01:42.4]} 13. Rab1 {[%clk 0:02:54.9]} 13... Qxa2 {[%clk
0:01:23.4]} 14. Rxb7 {[%clk 0:02:53.9]} 14... Qd5 {[%clk 0:01:24.5]} 15. Qxd5
{[%clk 0:02:46.7]} 15... exd5 {[%clk 0:01:25.7]} 16. e6 {[%clk 0:02:34.8]} 16...
fxe6 {[%clk 0:01:23.3]} 17. Nd4 {[%clk 0:02:35.5]} 17... Be7 {[%clk 0:01:14.9]}
18. Nxe6 {[%clk 0:02:32.3]} 18... Bxg5 {[%clk 0:01:14.1]} 19. Nxg5 {[%clk
0:02:31.7]} 19... Ke7 {[%clk 0:01:14.1]} 20. Rd1 {[%clk 0:01:59.5]} 20... Rhb8
{[%clk 0:01:11.9]} 21. Rxb8 {[%clk 0:01:40.1]} 21... Rxb8 {[%clk 0:01:12.5]} 22.
Ra1 {[%clk 0:01:40.2]} 22... h6 {[%clk 0:01:11.5]} 23. Nh3 {[%clk 0:01:38.6]}
23... g5 {[%clk 0:01:12.7]} 24. g3 {[%clk 0:01:28.3]} 24... Ra8 {[%clk
0:01:10.3]} 25. Ra6 {[%clk 0:01:27.9]} 25... Nb6 {[%clk 0:01:09.4]} 26. Kf1
{[%clk 0:01:28.4]} 26... Kd6 {[%clk 0:01:10.3]} 27. Ke2 {[%clk 0:01:27.9]} 27...
Kc5 {[%clk 0:01:11.6]} 28. f4 {[%clk 0:01:27.3]} 28... exf3+ {[%clk 0:01:12.6]}
29. Kxf3 {[%clk 0:01:27.3]} 29... Kb5 {[%clk 0:01:13.6]} 30. Ra1 {[%clk
0:01:25.7]} 30... a5 {[%clk 0:01:14.4]} 31. Nf2 {[%clk 0:01:20.3]} 31... Rf8+
{[%clk 0:01:13.3]} 32. Ke2 {[%clk 0:01:20.4]} 32... Nc4 {[%clk 0:01:14.3]} 33.
Rb1+ {[%clk 0:01:17.1]} 33... Kc5 {[%clk 0:01:14]} 34. c3 {[%clk 0:01:14.7]}
34... Ne5 {[%clk 0:01:11.6]} 35. Ra1 {[%clk 0:01:00.8]} 35... Ra8 {[%clk
0:01:11.6]} 36. Ke1 {[%clk 0:00:55.8]} 36... a4 {[%clk 0:01:11.6]} 37. Ra3
{[%clk 0:00:49.8]} 37... Nf3+ {[%clk 0:01:06.6]} 38. Ke2 {[%clk 0:00:47.5]}
38... Ne5 {[%clk 0:01:07]} 39. Nd1 {[%clk 0:00:42.7]} 39... Nc4 {[%clk
0:01:07.1]} 40. Ra2 {[%clk 0:00:42.7]} 40... a3 {[%clk 0:01:05.9]} 41. Nf2
{[%clk 0:00:43.7]} 41... Re8+ {[%clk 0:01:04.8]} 42. Kd1 {[%clk 0:00:39.6]}
42... Re3 {[%clk 0:01:04.9]} 43. Ng4 {[%clk 0:00:27.3]} 43... Rd3+ {[%clk
0:01:05.9]} 44. Ke1 {[%clk 0:00:27.8]} 44... h5 {[%clk 0:00:58.2]} 45. Nf6
{[%clk 0:00:25.4]} 45... h4 {[%clk 0:00:57.6]} 46. gxh4 {[%clk 0:00:26]} 46...
gxh4 {[%clk 0:00:59.5]} 47. Nd7+ {[%clk 0:00:19.3]} 47... Kd6 {[%clk 0:00:59.7]}
48. Nf6 {[%clk 0:00:12.7]} 48... Rxc3 {[%clk 0:01:00.8]} 49. Ke2 {[%clk
0:00:08.5]} 49... h3 {[%clk 0:00:56.7]} 50. Nh5 {[%clk 0:00:08.2]} 50... Kc5
{[%clk 0:00:57.8]} 51. Nf4 {[%clk 0:00:09]} 51... Re3+ {[%clk 0:00:57.1]} 52.
Kd1 {[%clk 0:00:08.7]} 52... Rf3 {[%clk 0:00:52.3]} 53. Ne2 {[%clk 0:00:05.6]}
53... Rf2 {[%clk 0:00:50]} 54. Nc3 {[%clk 0:00:06.7]} 54... Rxa2 {[%clk
0:00:47.4]} 55. Nxa2 {[%clk 0:00:08.6]} 55... Kd4 {[%clk 0:00:48.4]} 56. Ke2
{[%clk 0:00:09.5]} 56... Ne5 {[%clk 0:00:47.1]} 57. Kf2 {[%clk 0:00:09.8]} 57...
Nd3+ {[%clk 0:00:43.9]} 58. Kg3 {[%clk 0:00:10.8]} 58... Kc4 {[%clk 0:00:45.4]}
59. Kxh3 {[%clk 0:00:11.5]} 59... Kb3 {[%clk 0:00:47]} 60. Kg4 {[%clk
0:00:10.2]} 60... Kxa2 {[%clk 0:00:47]} 61. h4 {[%clk 0:00:12.1]} 61... Kb3
{[%clk 0:00:48.3]} 62. h5 {[%clk 0:00:13.2]} 62... a2 {[%clk 0:00:50.2]} 63. h6
{[%clk 0:00:14.6]} 63... a1=Q {[%clk 0:00:52.1]} 64. h7 {[%clk 0:00:16.5]} 64...
Qg7+ {[%clk 0:00:51.9]} 65. Kh5 {[%clk 0:00:18.4]} 65... Qxh7+ {[%clk
0:00:53.8]} 0-1

[Event "*** Titled Tuesday Blitz"]
[Site "Chess.com"]
[Date "2018.01.02"]
[Round "1"]
[White "Abrito99"]
[Black "Dr-Bassem"]
[Result "0-1"]
[WhiteElo "2349"]
[BlackElo "2637"]
[TimeControl "180+2"]
[EndTime "13:10:00 PST"]
[Termination "Dr-Bassem won by resignation"]

1. e4 {[%clk 0:03:01.9]} 1... e5 {[%clk 0:02:58.4]} 2. Nf3 {[%clk 0:03:02.8]}
2... Nc6 {[%clk 0:02:59.2]} 3. Bc4 {[%clk 0:03:04.3]} 3... Nf6 {[%clk 0:03:00]}
4. d3 {[%clk 0:03:05.4]} 4... h6 {[%clk 0:03:01.5]} 5. c3 {[%clk 0:03:03.3]}
5... d6 {[%clk 0:03:03]} 6. O-O {[%clk 0:03:03.3]} 6... g6 {[%clk 0:03:04.1]} 7.
Re1 {[%clk 0:03:01.7]} 7... Bg7 {[%clk 0:03:05.4]} 8. d4 {[%clk 0:03:00.6]} 8...
O-O {[%clk 0:03:07]} 9. h3 {[%clk 0:02:59.8]} 9... exd4 {[%clk 0:03:03.6]} 10.
Nxd4 {[%clk 0:02:58.2]} 10... Re8 {[%clk 0:03:01]} 11. Nxc6 {[%clk 0:02:49.2]}
11... bxc6 {[%clk 0:03:02.9]} 12. Bd3 {[%clk 0:02:50.2]} 12... c5 {[%clk
0:02:41.4]} 13. Nd2 {[%clk 0:02:48.7]} 13... Bb7 {[%clk 0:02:41.1]} 14. Qa4
{[%clk 0:02:45]} 14... a6 {[%clk 0:01:59.7]} 15. Nb3 {[%clk 0:02:29.6]} 15...
Qd7 {[%clk 0:01:35.9]} 16. Qxd7 {[%clk 0:02:24.1]} 16... Nxd7 {[%clk 0:01:37.8]}
17. Na5 {[%clk 0:02:25.7]} 17... Bc8 {[%clk 0:01:35.3]} 18. Bc4 {[%clk
0:02:22.6]} 18... Rb8 {[%clk 0:01:31.2]} 19. Bb3 {[%clk 0:02:01.4]} 19... Ne5
{[%clk 0:01:31.3]} 20. Rd1 {[%clk 0:01:55]} 20... Be6 {[%clk 0:01:28]} 21. f4
{[%clk 0:01:53.2]} 21... Nd7 {[%clk 0:01:16.8]} 22. Bc2 {[%clk 0:01:54]} 22...
Rb5 {[%clk 0:00:27.2]} 23. Nb3 {[%clk 0:01:53.6]} 23... Nf6 {[%clk 0:00:25.1]}
24. Nd2 {[%clk 0:01:35.8]} 24... Bd7 {[%clk 0:00:23.4]} 25. Nf3 {[%clk
0:01:13.1]} 25... Nxe4 {[%clk 0:00:23]} 26. Ba4 {[%clk 0:01:14.2]} 26... Ng3
{[%clk 0:00:19.2]} 27. Bxb5 {[%clk 0:01:00.8]} 27... Bxb5 {[%clk 0:00:21]} 28.
Re1 {[%clk 0:01:02.4]} 28... Ne4 {[%clk 0:00:18.1]} 29. Be3 {[%clk 0:01:01.4]}
29... f5 {[%clk 0:00:19.3]} 30. Rad1 {[%clk 0:01:02]} 30... Bc4 {[%clk
0:00:19.7]} 31. a3 {[%clk 0:01:00]} 31... Bb3 {[%clk 0:00:20.6]} 32. Rc1 {[%clk
0:00:58.6]} 32... a5 {[%clk 0:00:22.5]} 33. Nh4 {[%clk 0:00:58.9]} 33... Kf7
{[%clk 0:00:23.1]} 34. g4 {[%clk 0:01:00.2]} 34... Be6 {[%clk 0:00:22.9]} 35.
Kg2 {[%clk 0:00:59.3]} 35... Bf6 {[%clk 0:00:24]} 36. gxf5 {[%clk 0:00:53.4]}
36... gxf5 {[%clk 0:00:25.9]} 37. Nf3 {[%clk 0:00:54.9]} 37... Bd5 {[%clk
0:00:27.2]} 38. Kh2 {[%clk 0:00:54.4]} 38... Nxc3 {[%clk 0:00:27]} 39. Ne5+
{[%clk 0:00:35.8]} 39... dxe5 {[%clk 0:00:27.5]} 40. bxc3 {[%clk 0:00:37.3]}
40... c4 {[%clk 0:00:26]} 41. Rcd1 {[%clk 0:00:34.9]} 41... c6 {[%clk
0:00:27.1]} 42. Rb1 {[%clk 0:00:36.2]} 42... exf4 {[%clk 0:00:25.9]} 43. Rb7+
{[%clk 0:00:27.9]} 43... Kg6 {[%clk 0:00:23.5]} 44. Bd2 {[%clk 0:00:25]} 44...
Rxe1 {[%clk 0:00:24.2]} 45. Bxe1 {[%clk 0:00:26.9]} 45... f3 {[%clk 0:00:25.8]}
46. Kg1 {[%clk 0:00:25.7]} 46... Bg5 {[%clk 0:00:23.2]} 47. Ra7 {[%clk
0:00:17.5]} 47... Be3+ {[%clk 0:00:21.4]} 48. Bf2 {[%clk 0:00:18.9]} 48... Bxa7
{[%clk 0:00:20.9]} 49. Bxa7 {[%clk 0:00:19.7]} 49... f4 {[%clk 0:00:22.4]} 50.
Kf2 {[%clk 0:00:20.9]} 50... Kf5 {[%clk 0:00:24.1]} 51. Bb6 {[%clk 0:00:22.2]}
51... Ke4 {[%clk 0:00:25.4]} 52. Bxa5 {[%clk 0:00:22.9]} 52... h5 {[%clk
0:00:23.7]} 53. Bb4 {[%clk 0:00:24]} 53... Kd3 {[%clk 0:00:24.5]} 54. h4 {[%clk
0:00:21.3]} 54... c5 {[%clk 0:00:23.6]} 55. Ba5 {[%clk 0:00:20.2]} 55... Kc2
{[%clk 0:00:25.2]} 56. a4 {[%clk 0:00:21.3]} 56... Kb3 {[%clk 0:00:26.6]} 57.
Bb6 {[%clk 0:00:21.9]} 57... Kxc3 {[%clk 0:00:27.2]} 58. Bxc5 {[%clk 0:00:22.9]}
58... Kb3 {[%clk 0:00:27]} 59. a5 {[%clk 0:00:20.9]} 59... c3 {[%clk 0:00:28.5]}
60. Bd6 {[%clk 0:00:22.4]} 60... c2 {[%clk 0:00:29.2]} 61. Bxf4 {[%clk
0:00:21.2]} 61... Kb2 {[%clk 0:00:30.8]} 0-1